Workbook

Sheet Sheet1
A1: INSTRUCTIONS: Use this form when a single information collection document involves multiple reporting and recordkeeping requirements. The totals of the figures in cols. should be entered in item 13 of OMB-83-I: cols. (D) &/or (I) = 13a (respondent is only counted once); cols. F & I = 13b; cols. H & K = 13c. (F)Total/(D)Total = (E)Average (H)Total/(F)Total = (G)Average (K)Total/(I)Total = (J)Average NOTE: The columns will calculate automatically. If Col. E's response is something other than annually, i.e., 1/6 years, list as "1/6" & decimal will display. | I1: TITLE OF INFORMATION COLLECTION DOCUMENT | O1: OMB NO. 0578-00031
I3: Partnerships for Climate-Smart Commodities
O4: DATE PREPARED
O7: 2022-06-30
A10: IDENTIFICATION OF REPORTING OR RECORDKEEPING REQUIREMENT | H10: ANNUAL BURDEN
H12: REPORTS | N12: RECORDS | Q12: RESPONDENT COST
L14: TOTAL BURDEN HOURS | P14: TOTAL
G15: FORMS NO (S) | H15: NO. OF | I15: NO OF | J15: TOTAL ANNUAL | K15: HOURS | L15: (Col. F x G) | N15: NO. OF | O15: ANNUAL | P15: RECORD- | Q15: COST | R15: TOTAL
A16: SECTION OF | B16: DESCRIPTION | G16: (If "none" | H16: RESPONDENTS | I16: RESPONSES | J16: RESPONSES | K16: PER | L16: (H) | N16: RECORD- | O16: HOURS PER | P16: KEEPING HOURS | Q16: PER | R16: COST
A17: REGS. | G17: so state) | I17: PER | J17: (Col. D x E) | K17: RESPONSE | M17: NON-EXEMPT | N17: KEEPERS | O17: RECORD- | P17: (Col. I x J) | Q17: HOUR | R17: (Col. H x L)
I18: RESPONDENT | L18: EXEMPT | O18: KEEPER
A19: (A) | B19: (B) | G19: (C) | H19: (D) | I19: (E) | J19: (F) | K19: (G) | N19: (I) | O19: (J) | P19: (K) | Q19: (L) | R19: (M)
B20: Progress Reports | G20: None | H20: 55 | I20: 2 | J20: =SUM(H20*I20) -> 110 | K20: 17 | M20: =SUM(J20*K20) -> 1870 | Q20: 55.96 | R20: =SUM(M20*Q20) -> 104645.2
B21: Project Summary | G21: None | H21: 500 | I21: 1 | J21: =SUM(H21*I21) -> 500 | K21: 10 | M21: =SUM(J21*K21) -> 5000 | Q21: 55.96 | R21: 279800
B22: Resumes | G22: None | H22: 500 | I22: 1 | J22: 500 | K22: 10 | M22: 5000 | Q22: 55.96 | R22: 279800
B23: Support Letters | G23: None | H23: 500 | I23: 1 | J23: 500 | K23: 5 | M23: 2500 | Q23: 55.96 | R23: 139900
B25: Request for Advance or Reimbursement (OMB # 4040-0012) | G25: SF-270 | H25: 55 | I25: 1 | J25: =H25 -> 55 | K25: 1 | L25: 55
B26: Application for Federal Assistance** (OMB #4040-0020) | G26: SF-424 | H26: 500 | I26: 1 | J26: =H26 -> 500 | K26: 16 | L26: =K26*J26 -> 8000
B27: Budget Information for Non-Construction** (4040-0006) | G27: SF-424A | H27: 500 | I27: 1 | J27: 500 | K27: 1 | L27: =J27*K27 -> 500
B28: Assurances Non-Construction** (OMB # 4040-0007) | G28: SF-424B | H28: 55 | I28: 1 | J28: 55 | K28: 1 | L28: =J28*K28 -> 55
B29: Federal Financial Report** (OMB # 4040-0014) | G29: SF-425/SF-425A | H29: 55 | I29: 1 | J29: 55 | K29: 4 | L29: =K29*J29 -> 220
B30: Compliance and Environmental Worksheets* | H30: 5000 | I30: 2 | J30: 10000 | K30: 4 | L30: =K30*J30 -> 40000
B31: *Including, but not limited to: the form AD-1026-Highly Erodible Land Conservation (HELC) and Wetland Conservation (WC) Certification, and the form CPA-052-Environmental Evaluation Worksheet.
B32: **Collection is included in Progress Reports
B34: SUBTOTAL | J34: =SUM(J20:J23) -> 1610 | L34: =SUM(L20:L32) -> 48830 | M34: =SUM(M20:M24) -> 14370 | P34: =SUM(P20:P33) -> 0 | R34: =SUM(R20:R33) -> 804145.2
B35: TOTAL OF ALL PAGES | J35: =SUM(J34) -> 1610 | L35: =SUM(L34) -> 48830 | M35: =M34 -> 14370 | P35: =SUM(P34) -> 0 | R35: =SUM(R34) -> 804145.2
A36: TOTAL - COLUMNS "F" AND "I" = OMB 83-I, 13b; COLUMNS "H" AND "K" = OMB 83-I, 13c | J36: =SUM(J35+N35) -> 1610 | M36: =SUM(M35+P35) -> 14370
